fUST/lending_fUST_20260503
["ID","MTS","AMOUNT","RATE_DAILY","PERIOD"]
[421513564,1777799438000,-4690.10286848,0.00013417,2]
[421513565,1777799438000,-500.0,0.00013417,2]
[421513567,1777799438000,-161.01232938,0.00013598,2]
[421513561,1777799438000,-499.99999801,0.0001299,2]
[421513566,1777799438000,-1000.0,0.00013575,2]
[421513569,1777799438000,-151.0,0.00013698,2]
[421513562,1777799438000,-160.0,0.0001329,2]
[421513571,1777799438000,-500.0,0.00013698,2]
[421513576,1777799438000,-501.24141859,0.00013698,2]
[421513568,1777799438000,-578.75664502,0.00013691,2]
[421513578,1777799438000,-500.0,0.00013698,2]
[421513574,1777799438000,-500.0,0.00013698,2]
[421513579,1777799438000,-500.0,0.00013698,2]
[421513575,1777799438000,-500.0,0.00013698,2]
[421513573,1777799438000,-500.0,0.00013698,2]
[421513570,1777799438000,-151.0,0.00013698,2]
[421513633,1777799439000,-644.79446246,0.00015702,2]
[421513634,1777799439000,-151.0,0.00015712,2]
[421513636,1777799439000,-1421.177,0.000158,2]
[421513632,1777799439000,-621.78829552,0.00015647,2]
[421513635,1777799439000,-668.65185757,0.00015757,2]
[421513637,1777799439000,-446.427,0.000158,2]
[421513641,1777799439000,-500.0,0.0001589,2]
[421513640,1777799439000,-500.0,0.00015875,2]
[421513639,1777799439000,-719.04747942,0.00015867,2]
[421513638,1777799439000,-693.3919763,0.00015812,2]
[421513642,1777799439000,-500.0,0.0001589,2]
[421513643,1777799439000,-500.0,0.0001589,2]
[421513644,1777799439000,-500.0,0.0001589,2]
[421513653,1777799439000,-374.97128755,0.00016032,2]
[421513645,1777799439000,-500.0,0.0001589,2]
[421513649,1777799439000,-2230.315306,0.00015975,2]
[421513647,1777799439000,-469.48671441,0.00015975,2]
[421513648,1777799439000,-557.5788265,0.00015975,2]
[421513652,1777799439000,-500.0,0.00016013,2]
[421513651,1777799439000,-151.0,0.00016013,2]
[421513650,1777799439000,-773.2413689,0.00015977,2]
[421513654,1777799439000,-159.03604929,0.00016095,2]
[421513655,1777799439000,-500.0,0.00016134,2]
[421513656,1777799439000,-500.0,0.00016134,2]
[421513658,1777799439000,-4690.10286848,0.00016159,2]
[421513629,1777799439000,-297.2682,0.0001555,2]
[421513646,1777799439000,-745.65223616,0.00015922,2]
[421513628,1777799439000,-578.20924308,0.00015537,2]
[421513613,1777799439000,-368.13456008,0.00014999,2]
[421513630,1777799439000,-599.60298507,0.00015592,2]
[421513602,1777799439000,-4690.10286848,0.00014788,2]
[421513601,1777799439000,-152.92,0.00014781,2]
[421513604,1777799439000,-244.0,0.00014932,2]
[421513603,1777799439000,-1000.0,0.00014932,2]
[421513608,1777799439000,-500.0,0.00014999,2]
[421513605,1777799439000,-153.34,0.00014976,2]
[421513607,1777799439000,-500.0,0.00014999,2]
[421513606,1777799439000,-500.0,0.00014999,2]
[421513609,1777799439000,-264.56198817,0.00014999,2]
[421513657,1777799439000,-151.0,0.00016135,2]
[421513612,1777799439000,-500.0,0.00014999,2]
[421513610,1777799439000,-500.0,0.00014999,2]
[421513611,1777799439000,-500.0,0.00014999,2]
[421513614,1777799439000,-241.2386603,0.00014999,2]
[421513616,1777799439000,-6852.34,0.00015,5]
[421513620,1777799439000,-185.0,0.00015122,2]
[421513617,1777799439000,-151.0,0.00015,2]
[421513615,1777799439000,-500.0,0.00014999,2]
[421513618,1777799439000,-176.04865274,0.00015,2]
[421513619,1777799439000,-442.0,0.00015122,2]
[421513621,1777799439000,-500.0,0.00015127,2]
[421513624,1777799439000,-162.380719,0.00015427,2]
[421513622,1777799439000,-537.6845,0.00015427,2]
[421513623,1777799439000,-445.202766,0.00015427,2]
[421513625,1777799439000,-537.6845,0.00015427,2]
[421513626,1777799439000,-2150.738,0.00015427,2]
[421513627,1777799439000,-557.5788265,0.00015482,2]
[421513631,1777799439000,-826.0,0.00015622,2]
[421513659,1777799439000,-628.21039826,0.00016286,2]
[421513664,1777799439000,-151.0,0.00016287,2]
[421513661,1777799439000,-151.0,0.00016287,2]
[421513694,1777799439000,-151.0,0.00016287,2]
[421513697,1777799439000,-151.0,0.00016287,2]
[421513696,1777799439000,-151.0,0.00016287,2]
[421513695,1777799439000,-151.0,0.00016287,2]
[421513704,1777799439000,-151.0,0.00016287,2]
[421513698,1777799439000,-151.0,0.00016287,2]
[421513701,1777799439000,-151.0,0.00016287,2]
[421513699,1777799439000,-151.0,0.00016287,2]
[421513700,1777799439000,-151.0,0.00016287,2]
[421513703,1777799439000,-151.0,0.00016287,2]
[421513705,1777799439000,-151.0,0.00016287,2]
[421513708,1777799439000,-45.82591595,0.00016287,2]
[421513693,1777799439000,-151.0,0.00016287,2]
[421513707,1777799439000,-105.17408405,0.00016287,2]
[421513706,1777799439000,-151.0,0.00016287,2]
[421513709,1777799439000,-154.02204546,0.00016287,2]
[421513711,1777799439000,-500.0,0.00016337,2]
[421513714,1777799439000,-161.01232938,0.00016338,2]
[421513716,1777799439000,-260.24,0.00016338,2]
[421513715,1777799439000,-29933.82967715,0.00016338,2]
[421513712,1777799439000,-4617.4941805,0.00016337,2]
[421513713,1777799439000,-382.5058195,0.00016337,2]
[421513717,1777799439000,-428.493195,0.00016378,2]
[421513718,1777799439000,-160.0,0.00016378,2]
[421513720,1777799439000,-836.490742,0.00016378,2]
[421513719,1777799439000,-498.245371,0.00016378,2]
[421513660,1777799439000,-151.0,0.00016287,2]
[421513692,1777799439000,-151.0,0.00016287,2]
[421513710,1777799439000,-309.851,0.000163,2]
[421513690,1777799439000,-151.0,0.00016287,2]
[421513691,1777799439000,-151.0,0.00016287,2]
[421513665,1777799439000,-151.0,0.00016287,2]
[421513662,1777799439000,-151.0,0.00016287,2]
[421513667,1777799439000,-151.0,0.00016287,2]
[421513663,1777799439000,-151.0,0.00016287,2]
[421513666,1777799439000,-151.0,0.00016287,2]
[421513669,1777799439000,-151.0,0.00016287,2]
[421513670,1777799439000,-151.0,0.00016287,2]
[421513671,1777799439000,-151.0,0.00016287,2]
[421513673,1777799439000,-151.0,0.00016287,2]
[421513668,1777799439000,-151.0,0.00016287,2]
[421513675,1777799439000,-151.0,0.00016287,2]
[421513680,1777799439000,-151.0,0.00016287,2]
[421513672,1777799439000,-151.0,0.00016287,2]
[421513676,1777799439000,-151.0,0.00016287,2]
[421513689,1777799439000,-151.0,0.00016287,2]
[421513674,1777799439000,-151.0,0.00016287,2]
[421513687,1777799439000,-151.0,0.00016287,2]
[421513686,1777799439000,-151.0,0.00016287,2]
[421513688,1777799439000,-151.0,0.00016287,2]
[421513683,1777799439000,-151.0,0.00016287,2]
[421513684,1777799439000,-151.0,0.00016287,2]
[421513685,1777799439000,-151.0,0.00016287,2]
[421513681,1777799439000,-151.0,0.00016287,2]
[421513678,1777799439000,-151.0,0.00016287,2]
[421513677,1777799439000,-151.0,0.00016287,2]
[421513679,1777799439000,-151.0,0.00016287,2]
[421513682,1777799439000,-151.0,0.00016287,2]
[421513743,1777799440000,-500.0,0.00016437,2]
[421513738,1777799440000,-155.0,0.00016437,2]
[421513741,1777799440000,-462.8844391,0.00016437,2]
[421513740,1777799440000,-500.0,0.00016437,2]
[421513742,1777799440000,-500.0,0.00016437,2]
[421513744,1777799440000,-500.0,0.00016437,2]
[421513750,1777799440000,-500.0,0.00016437,2]
[421513746,1777799440000,-500.0,0.00016437,2]
[421513748,1777799440000,-500.0,0.00016437,2]
[421513749,1777799440000,-500.0,0.00016437,2]
[421513747,1777799440000,-613.12,0.00016437,2]
[421513751,1777799440000,-500.0,0.00016437,2]
[421513737,1777799440000,-500.0,0.00016436,2]
[421513745,1777799440000,-500.0,0.00016437,2]
[421513739,1777799440000,-500.0,0.00016437,2]
[421513723,1777799440000,-151.0,0.000164,2]
[421513733,1777799440000,-492.0,0.00016426,2]
[421513753,1777799440000,-507.18017086,0.00016437,2]
[421513721,1777799440000,-151.0,0.000164,2]
[421513722,1777799440000,-151.0,0.000164,2]
[421513724,1777799440000,-151.0,0.000164,2]
[421513726,1777799440000,-151.0,0.000164,2]
[421513729,1777799440000,-151.0,0.000164,2]
[421513732,1777799440000,-1000.0,0.00016426,2]
[421513725,1777799440000,-151.0,0.000164,2]
[421513727,1777799440000,-151.0,0.000164,2]
[421513730,1777799440000,-500.0,0.00016425,2]
[421513731,1777799440000,-500.0,0.00016425,2]
[421513736,1777799440000,-500.0,0.00016436,2]
[421513734,1777799440000,-4730.0,0.00016436,2]
[421513735,1777799440000,-500.0,0.00016436,2]
[421513728,1777799440000,-151.0,0.000164,2]
[421513757,1777799440000,-2031.3873,0.00016438,2]
[421513790,1777799440000,-341.44406342,0.00016438,2]
[421513754,1777799440000,-200.0,0.00016437,2]
[421513778,1777799440000,-500.0,0.00016438,2]
[421513779,1777799440000,-834.99291984,0.00016438,2]
[421513780,1777799440000,-894.38708016,0.00016438,2]
[421513783,1777799440000,-500.0,0.00016438,2]
[421513782,1777799440000,-500.0,0.00016438,2]
[421513786,1777799440000,-775.9,0.00016438,2]
[421513777,1777799440000,-307.56604708,0.00016438,2]
[421513784,1777799440000,-1300.69,0.00016438,2]
[421513787,1777799440000,-500.0,0.00016438,2]
[421513789,1777799440000,-1486.93517123,0.00016438,2]
[421513791,1777799440000,-1430.93076535,0.00016438,2]
[421513792,1777799440000,-812.15671211,0.00016438,2]
[421513788,1777799440000,-500.0,0.00016438,2]
[421513755,1777799440000,-1544.94761378,0.00016438,2]
[421513781,1777799440000,-500.0,0.00016438,2]
[421513774,1777799440000,-192.43395292,0.00016438,2]
[421513785,1777799440000,-500.0,0.00016438,2]
[421513770,1777799440000,-500.0,0.00016438,2]
[421513772,1777799440000,-500.0,0.00016438,2]
[421513752,1777799440000,-500.0,0.00016437,2]
[421513756,1777799440000,-4062.7642,0.00016438,2]
[421513760,1777799440000,-500.0,0.00016438,2]
[421513763,1777799440000,-500.0,0.00016438,2]
[421513761,1777799440000,-500.0,0.00016438,2]
[421513759,1777799440000,-500.0,0.00016438,2]
[421513764,1777799440000,-500.0,0.00016438,2]
[421513762,1777799440000,-586.56428243,0.00016438,2]
[421513767,1777799440000,-500.0,0.00016438,2]
[421513765,1777799440000,-163.86090747,0.00016438,2]
[421513768,1777799440000,-500.0,0.00016438,2]
[421513769,1777799440000,-500.0,0.00016438,2]
[421513771,1777799440000,-500.0,0.00016438,2]
[421513766,1777799440000,-336.13909253,0.00016438,2]
[421513818,1777799443000,-500.0,0.00016438,2]
[421513822,1777799443000,-299.82268912,0.00016438,2]
[421513821,1777799443000,-1011.81,0.00016438,2]
[421513816,1777799443000,-576.09231449,0.00016438,2]
[421513814,1777799443000,-655.45595345,0.00016438,2]
[421513815,1777799443000,-2422.53404655,0.00016438,2]
[421513820,1777799443000,-1022.71,0.00016438,2]
[421513817,1777799443000,-772.17,0.00016438,2]
[421513808,1777799443000,-629.41,0.00016438,2]
[421513813,1777799443000,-500.0,0.00016438,2]
[421513810,1777799443000,-303.85890607,0.00016438,2]
[421513812,1777799443000,-348.89424655,0.00016438,2]
[421513811,1777799443000,-151.10575345,0.00016438,2]
[421513807,1777799443000,-500.0,0.00016438,2]
[421513809,1777799443000,-196.14109393,0.00016438,2]
[421513806,1777799443000,-160.40328789,0.00016438,2]
[421513823,1777799443000,-500.0,0.00016438,2]
[421513819,1777799443000,-500.0,0.00016438,2]
[421513825,1777799443000,-500.0,0.00016438,2]
[421513831,1777799443000,-500.0,0.00016438,2]
[421513826,1777799443000,-500.0,0.00016438,2]
[421513824,1777799443000,-500.0,0.00016438,2]
[421513842,1777799443000,-500.0,0.00016438,2]
[421513843,1777799443000,-500.0,0.00016438,2]
[421513840,1777799443000,-500.0,0.00016438,2]
[421513841,1777799443000,-309.27564764,0.00016438,2]
[421513835,1777799443000,-500.0,0.00016438,2]
[421513839,1777799443000,-500.0,0.00016438,2]
[421513837,1777799443000,-585.99,0.00016438,2]
[421513838,1777799443000,-500.0,0.00016438,2]
[421513834,1777799443000,-579.7,0.00016438,2]
[421513832,1777799443000,-500.0,0.00016438,2]
[421513830,1777799443000,-500.0,0.00016438,2]
[421513844,1777799443000,-245.22696112,0.00016438,2]
[421513833,1777799443000,-500.0,0.00016438,2]
[421513827,1777799443000,-500.0,0.00016438,2]
[421513829,1777799443000,-500.0,0.00016438,2]
[421513828,1777799443000,-1145.8,0.00016438,2]
[421513836,1777799443000,-500.0,0.00016438,2]
[421513854,1777799446000,-254.77303888,0.00016438,2]
[421513852,1777799446000,-5000.0,0.00016274,2]
[421513853,1777799446000,-5000.0,0.00016437,2]
[421513855,1777799446000,-516.85,0.00016438,2]
[421513859,1777799446000,-570.31,0.00016438,2]
[421513857,1777799446000,-1808.56538917,0.00016438,2]
[421513858,1777799446000,-500.0,0.00016438,2]
[421513860,1777799446000,-383.63971126,0.00016438,2]
[421513856,1777799446000,-424.69461083,0.00016438,2]
[421513875,1777799611000,167.273056,7.034e-05,2]
[421513902,1777800532000,172.58116336,0.00018447,120]
[421513948,1777800632000,-1828.42997168,0.00012068,2]
[421513949,1777800632000,-888.34205459,0.00012068,2]
[421513946,1777800632000,-2466.95269902,0.00011947,2]
[421513947,1777800632000,-2533.04730098,0.00011947,2]
[421513991,1777800640000,-370.0,0.0001219,2]
[421513990,1777800640000,-571.0,0.00012068,2]
[421513989,1777800640000,-2283.22797373,0.00012068,2]
[421513992,1777800640000,-300.0,0.0001219,2]
[421514002,1777800640000,-225.88564071,0.0001363,2]
[421513997,1777800640000,-217.20637341,0.00013365,14]
[421514000,1777800640000,-300.0,0.00013379,2]
[421513994,1777800640000,-300.0,0.0001219,2]
[421513993,1777800640000,-300.0,0.0001219,2]
[421514001,1777800640000,-300.0,0.0001363,2]
[421513995,1777800640000,-1200.0,0.0001219,2]
[421513996,1777800640000,-213.86569496,0.00012253,2]
[421513998,1777800640000,-302.0,0.00013379,2]
[421514006,1777800641000,-78.17231487,0.0001363,2]
[421514004,1777800641000,-74.11435929,0.0001363,2]
[421514005,1777800641000,-300.0,0.0001363,2]
[421514008,1777800641000,-137.67331491,0.0001363,2]
[421514007,1777800641000,-221.82768513,0.0001363,2]
[421514094,1777800646000,-300.0,0.0001363,2]
[421514092,1777800646000,-300.0,0.0001363,2]
[421514093,1777800646000,-300.0,0.0001363,2]
[421514091,1777800646000,-162.32668509,0.0001363,2]
[421514098,1777800647000,-300.0,0.0001363,2]
[421514096,1777800647000,-300.0,0.0001363,2]
[421514095,1777800647000,-300.0,0.0001363,2]
[421514097,1777800647000,-300.0,0.0001363,2]
[421514099,1777800647000,-300.0,0.0001363,2]
[421514104,1777800647000,-1000.0,0.00013699,2]
[421514103,1777800647000,-160.0,0.00013684,2]
[421514102,1777800647000,-160.0,0.00013683,2]
[421514100,1777800647000,-300.0,0.0001363,2]
[421514105,1777800647000,-517.67331491,0.00013699,2]
[421514101,1777800647000,-300.0,0.0001363,2]
[421514106,1777800653000,1196.31764971,0.0001,2]
[421514107,1777800655000,52097.06892982,7.6e-05,2]
[421514159,1777801832000,-178.4786866,8.266e-05,2]
[421514161,1777801832000,-976.25152329,8.349e-05,2]
[421514160,1777801832000,-427.05066376,8.349e-05,2]
[421514217,1777801842000,-300.0,0.00010097,2]
[421514220,1777801842000,-300.0,0.00010097,2]
[421514219,1777801842000,-300.0,0.00010097,2]
[421514221,1777801842000,-300.0,0.00010097,2]
[421514222,1777801842000,-300.0,0.00010097,2]
[421514224,1777801842000,-151.0,0.00010097,2]
[421514223,1777801842000,-300.0,0.00010097,2]
[421514225,1777801842000,-280.66477055,0.00010391,2]
[421514229,1777801842000,-177.11356231,0.00012447,2]
[421514228,1777801842000,-323.47804063,0.00012391,2]
[421514227,1777801842000,-177.11356231,0.0001122,2]
[421514231,1777801842000,-160.0,0.00013313,2]
[421514226,1777801842000,-476.0,0.00010517,2]
[421514230,1777801842000,-160.0,0.00013313,2]
[421514234,1777801842000,-500.0,0.00013697,2]
[421514233,1777801842000,-500.0,0.00013697,2]
[421514232,1777801842000,-177.11356231,0.00013673,2]
[421514235,1777801842000,-500.0,0.00013697,2]
[421514237,1777801842000,-500.0,0.00013697,2]
[421514236,1777801842000,-500.0,0.00013697,2]
[421514239,1777801842000,-500.0,0.00013697,2]
[421514247,1777801842000,-500.0,0.00013697,2]
[421514249,1777801842000,-500.0,0.00013697,2]
[421514248,1777801842000,-500.0,0.00013697,2]
[421514216,1777801842000,-300.0,0.00010097,2]
[421514196,1777801842000,-420.0,9.561e-05,2]
[421514214,1777801842000,-300.0,0.00010097,2]
[421514238,1777801842000,-483.27106793,0.00013697,2]
[421514176,1777801842000,-2386.92409822,8.349e-05,2]
[421514180,1777801842000,-1209.77371473,8.349e-05,2]
[421514182,1777801842000,-237.85150047,8.391e-05,2]
[421514181,1777801842000,-537.0,8.349e-05,2]
[421514185,1777801842000,-5000.0,8.433e-05,2]
[421514183,1777801842000,-1200.0,8.432e-05,2]
[421514187,1777801842000,-830.0,8.604e-05,2]
[421514188,1777801842000,-300.0,8.692e-05,2]
[421514190,1777801842000,-300.0,8.692e-05,2]
[421514192,1777801842000,-300.0,8.692e-05,2]
[421514200,1777801842000,-177.11356235,9.993e-05,2]
[421514194,1777801842000,-3019.62384076,9.425e-05,2]
[421514198,1777801842000,-37496.90028988,9.561e-05,2]
[421514202,1777801842000,-2673.76082129,0.0001,2]
[421514206,1777801842000,-922.26266558,0.0001,2]
[421514204,1777801842000,-218.72387344,0.0001,2]
[421514208,1777801842000,-238.515312,0.00010094,2]
[421514210,1777801842000,-300.0,0.00010097,2]
[421514209,1777801842000,-300.0,0.00010097,2]
[421514212,1777801842000,-300.0,0.00010097,2]
[421514218,1777801842000,-300.0,0.00010097,2]
[421514213,1777801842000,-300.0,0.00010097,2]
[421514215,1777801842000,-300.0,0.00010097,2]
[421514240,1777801842000,-500.0,0.00013697,2]
[421514211,1777801842000,-300.0,0.00010097,2]
[421514242,1777801842000,-500.0,0.00013697,2]
[421514281,1777801842000,-500.0,0.00013697,2]
[421514280,1777801842000,-500.0,0.00013697,2]
[421514301,1777801842000,-775.152592,0.00013699,2]
[421514284,1777801842000,-500.0,0.00013698,2]
[421514283,1777801842000,-500.0,0.00013697,2]
[421514286,1777801842000,-500.0,0.00013698,2]
[421514295,1777801842000,-1559.11,0.00013698,2]
[421514285,1777801842000,-500.0,0.00013698,2]
[421514287,1777801842000,-571.06837601,0.00013698,2]
[421514290,1777801842000,-500.0,0.00013698,2]
[421514292,1777801842000,-500.0,0.00013698,2]
[421514293,1777801842000,-500.0,0.00013698,2]
[421514291,1777801842000,-500.0,0.00013698,2]
[421514289,1777801842000,-500.0,0.00013698,2]
[421514294,1777801842000,-1559.11,0.00013698,2]
[421514296,1777801842000,-1559.11,0.00013698,2]
[421514297,1777801842000,-1559.11,0.00013698,2]
[421514302,1777801842000,-775.152592,0.00013699,2]
[421514303,1777801842000,-775.152592,0.00013699,2]
[421514300,1777801842000,-775.152592,0.00013699,2]
[421514298,1777801842000,-1559.11,0.00013698,2]
[421514299,1777801842000,-1000.0,0.00013699,2]
[421514241,1777801842000,-500.0,0.00013697,2]
[421514279,1777801842000,-500.0,0.00013697,2]
[421514278,1777801842000,-500.0,0.00013697,2]
[421514288,1777801842000,-500.0,0.00013698,2]
[421514282,1777801842000,-500.0,0.00013697,2]
[421514245,1777801842000,-500.0,0.00013697,2]
[421514243,1777801842000,-500.0,0.00013697,2]
[421514277,1777801842000,-500.0,0.00013697,2]
[421514244,1777801842000,-336.64873559,0.00013697,2]
[421514250,1777801842000,-500.0,0.00013697,2]
[421514251,1777801842000,-358.2470612,0.00013697,2]
[421514253,1777801842000,-500.0,0.00013697,2]
[421514261,1777801842000,-500.0,0.00013697,2]
[421514254,1777801842000,-469.42137334,0.00013697,2]
[421514252,1777801842000,-500.0,0.00013697,2]
[421514263,1777801842000,-500.0,0.00013697,2]
[421514267,1777801842000,-500.0,0.00013697,2]
[421514246,1777801842000,-492.22915331,0.00013697,2]
[421514269,1777801842000,-500.0,0.00013697,2]
[421514255,1777801842000,-500.0,0.00013697,2]
[421514274,1777801842000,-500.0,0.00013697,2]
[421514275,1777801842000,-500.0,0.00013697,2]
[421514273,1777801842000,-500.0,0.00013697,2]
[421514271,1777801842000,-500.0,0.00013697,2]
[421514276,1777801842000,-500.0,0.00013697,2]
[421514270,1777801842000,-500.0,0.00013697,2]
[421514257,1777801842000,-500.0,0.00013697,2]
[421514259,1777801842000,-500.0,0.00013697,2]
[421514265,1777801842000,-500.0,0.00013697,2]
[421514272,1777801842000,-500.0,0.00013697,2]
[421514326,1777801843000,-500.0,0.00014274,2]
[421514341,1777801843000,-4718.72046738,0.00014375,2]
[421514338,1777801843000,-775.152592,0.00014275,2]
[421514339,1777801843000,-561.60801912,0.000143,2]
[421514336,1777801843000,-775.152592,0.00014275,2]
[421514335,1777801843000,-775.152592,0.00014275,2]
[421514328,1777801843000,-1970.97657511,0.00014275,2]
[421514334,1777801843000,-2280.80278237,0.00014275,2]
[421514337,1777801843000,-775.152592,0.00014275,2]
[421514315,1777801843000,-500.0,0.00014274,2]
[421514305,1777801843000,-775.152592,0.00013699,2]
[421514314,1777801843000,-212.0305998,0.0001426,2]
[421514311,1777801843000,-561.60801912,0.00014,2]
[421514312,1777801843000,-561.60801912,0.000141,2]
[421514307,1777801843000,-775.152592,0.00013699,2]
[421514309,1777801843000,-1000.0,0.00013699,2]
[421514304,1777801843000,-775.152592,0.00013699,2]
[421514310,1777801843000,-359.9820018,0.0001373,2]
[421514306,1777801843000,-775.152592,0.00013699,2]
[421514348,1777801843000,-509.85788215,0.00014474,2]
[421514313,1777801843000,-1992.7727469,0.00014175,2]
[421514344,1777801843000,-500.0,0.00014474,2]
[421514364,1777801843000,-775.152592,0.00014475,2]
[421514346,1777801843000,-500.0,0.00014474,2]
[421514385,1777801843000,-258.14663015,0.00014487,2]
[421514386,1777801843000,-561.60801912,0.000146,2]
[421514378,1777801843000,-302.62139999,0.00014487,2]
[421514360,1777801843000,-4865.88639411,0.00014475,2]
[421514340,1777801843000,-1559.11,0.00014374,2]
[421514365,1777801843000,-1559.11,0.00014486,2]
[421514366,1777801843000,-7227.92196986,0.00014487,2]
[421514359,1777801843000,-500.0,0.00014474,2]
[421514363,1777801843000,-775.152592,0.00014475,2]
[421514361,1777801843000,-775.152592,0.00014475,2]
[421514362,1777801843000,-775.152592,0.00014475,2]
[421514356,1777801843000,-596.63255222,0.00014474,2]
[421514357,1777801843000,-500.0,0.00014474,2]
[421514354,1777801843000,-500.0,0.00014474,2]
[421514355,1777801843000,-500.0,0.00014474,2]
[421514353,1777801843000,-500.0,0.00014474,2]
[421514352,1777801843000,-500.0,0.00014474,2]
[421514351,1777801843000,-500.0,0.00014474,2]
[421514342,1777801843000,-366.29131072,0.00014391,2]
[421514350,1777801843000,-500.0,0.00014474,2]
[421514358,1777801843000,-500.0,0.00014474,2]
[421514343,1777801843000,-561.60801912,0.000144,2]
[421514398,1777801844000,-775.152592,0.00014999,2]
[421514402,1777801844000,-500.0,0.00014999,2]
[421514401,1777801844000,-775.152599,0.00014999,2]
[421514395,1777801844000,-500.0,0.00014998,2]
[421514394,1777801844000,-500.0,0.00014998,2]
[421514390,1777801844000,-177.11356231,0.000149,2]
[421514393,1777801844000,-200.47420944,0.00014998,2]
[421514388,1777801844000,-84.46566228,0.00014763,2]
[421514389,1777801844000,-2121.64624862,0.00014831,2]
[421514397,1777801844000,-1559.11,0.00014998,2]
[421514391,1777801844000,-299.52579056,0.00014998,2]
[421514396,1777801844000,-1559.11,0.00014998,2]
[421514387,1777801844000,-515.53433772,0.00014763,2]
[421514405,1777801844000,-500.0,0.00014999,2]
[421514414,1777801844000,-400.99368379,0.00014999,2]
[421514411,1777801844000,-211.80761641,0.00014999,2]
[421514412,1777801844000,-1559.11,0.00014999,2]
[421514410,1777801844000,-500.0,0.00014999,2]
[421514413,1777801844000,-1009.50302605,0.00014999,2]
[421514409,1777801844000,-500.0,0.00014999,2]
[421514399,1777801844000,-775.152592,0.00014999,2]
[421514404,1777801844000,-500.0,0.00014999,2]
[421514403,1777801844000,-500.0,0.00014999,2]
[421514400,1777801844000,-775.152592,0.00014999,2]
[421514407,1777801844000,-306.64513384,0.00014999,2]
[421514406,1777801844000,-193.35486616,0.00014999,2]
[421514408,1777801844000,-500.0,0.00014999,2]
[421514452,1777801846000,-608.40489964,0.00014999,2]
[421514448,1777801846000,-1559.11,0.00014999,2]
[421514450,1777801846000,-1559.11,0.00014999,2]
[421514446,1777801846000,-148.61329016,0.00014999,2]
[421514454,1777801846000,-950.70510036,0.00014999,2]
[421514458,1777801846000,-1559.11,0.00014999,2]
[421514460,1777801846000,-1559.11,0.00014999,2]
[421514463,1777801846000,-1559.11,0.00014999,2]
[421514467,1777801846000,-1559.11,0.00014999,2]
[421514456,1777801846000,-1559.11,0.00014999,2]
[421514469,1777801846000,-1559.11,0.00014999,2]
[421514465,1777801846000,-1559.11,0.00014999,2]
[421514479,1777801846000,-460.29429605,0.00015,2]
[421514477,1777801846000,-200.0,0.00014999,2]
[421514475,1777801846000,-1559.28026974,0.00014999,2]
[421514482,1777801846000,-99462.44496879,0.00015,2]
[421514471,1777801846000,-1559.11,0.00014999,2]
[421514473,1777801846000,-1559.11,0.00014999,2]
[421514485,1777801847000,-6540.46837274,0.00015,2]
[421514490,1777801847000,-63160.60955377,0.00015,2]
[421514498,1777801975000,165.55598906,0.00016981,120]
[421514499,1777802466000,613.3980809,0.00021917,120]
[421514565,1777803032000,-325.33758502,0.00012387,2]
[421514551,1777803032000,-1099.64455482,0.0001202,2]
[421514553,1777803032000,-1599.75761637,0.0001202,2]
[421514555,1777803032000,-809.83634132,0.0001202,2]